fUST/lending_fUST_20250225
["ID","MTS","AMOUNT","RATE_DAILY","PERIOD"]
[354353431,1740439859747,-1560.83,0.00015589,2]
[354353432,1740439859757,-1420.06102795,0.00015589,2]
[354353433,1740439859767,-1146.67358176,0.00015589,2]
[354353434,1740439859777,-854.14218776,0.00015589,2]
[354353435,1740439859786,-1614.9374826,0.00015589,2]
[354353436,1740439859796,-517.57650282,0.00015589,2]
[354353437,1740439859805,-46717.33272566,0.00015589,2]
[354353438,1740439859815,-2744.84297551,0.00015589,2]
[354353439,1740439859825,-4421.70982161,0.00015589,2]
[354353440,1740439859834,-926.53645022,0.00015589,2]
[354353441,1740439859844,-2109.58018864,0.00015589,2]
[354353442,1740439859854,-813.8092444,0.00015589,2]
[354353443,1740439859863,-2208.07915987,0.00015589,2]
[354353444,1740439859874,-14926.03983297,0.00015589,2]
[354353445,1740439859883,-1307.67920822,0.00015589,2]
[354353446,1740439859892,-674.32343116,0.00015589,2]
[354353447,1740439859901,-6126.84090373,0.00015589,2]
[354353448,1740439859911,-930.47401612,0.00015589,2]
[354353449,1740439859920,-568.91,0.00015589,2]
[354353450,1740439859930,-17743.10191996,0.00015589,2]
[354353451,1740439859939,-794.84,0.00015589,2]
[354353452,1740439859949,-1574.97535151,0.00015589,2]
[354353453,1740439859959,-1100.37904907,0.00015589,2]
[354353454,1740439859969,-1720.54248361,0.00015589,2]
[354353455,1740439859979,-310.49,0.00015589,2]
[354353456,1740439859989,-3282.69332745,0.00015589,2]
[354353457,1740439859998,-1167.95309381,0.00015589,2]
[354353458,1740439860007,-4125.20114424,0.00015589,2]
[354353459,1740439860017,-2231.90599476,0.00015589,2]
[354353460,1740439860027,-1547.53230868,0.00015589,2]
[354353461,1740439860037,-2353.82589364,0.00015589,2]
[354353462,1740439860047,-1622.51544751,0.00015589,2]
[354353463,1740439860058,-649.88,0.00015589,2]
[354353464,1740439860068,-9642.58959782,0.00015589,2]
[354353465,1740439860078,-2968.76334806,0.00015589,2]
[354353466,1740439860088,-1131.97493369,0.00015589,2]
[354353467,1740439860098,-3767.73824521,0.00015589,2]
[354353468,1740439860108,-250.0,0.00015621,2]
[354353469,1740439860118,-1500.0,0.00015722,2]
[354353470,1740439860128,-1500.0,0.00015722,2]
[354353471,1740439860137,-2318.12198314,0.00015748,2]
[354353472,1740439860147,-265.874361,0.00015775,2]
[354353473,1740439860157,-5086.67967139,0.00015785,2]
[354353474,1740439860166,-5000.0,0.00015785,2]
[354353475,1740439860176,-5000.0,0.00015785,2]
[354353476,1740439860186,-5000.0,0.00015785,2]
[354353477,1740439860196,-5000.0,0.00015785,2]
[354353478,1740439860206,-538.0,0.00015804,2]
[354353479,1740439860215,-1970.0,0.00015804,2]
[354353480,1740439860225,-2348.727,0.00015804,2]
[354353481,1740439860235,-363.0,0.000159,6]
[354353482,1740439860244,-5000.0,0.00016,7]
[354353483,1740439860254,-1444.0234568,0.00016,7]
[354353484,1740439860264,-70617.34136092,0.00016,2]
[354353485,1740439860274,-1032.92,0.00016,2]
[354353486,1740439860283,-686.56,0.00016164,2]
[354353487,1740439860293,-453.96874124,0.00016168,2]
[354353488,1740439860303,-65264.6751173,0.000162,2]
[354353489,1740439860313,-65264.67511726,0.000162,2]
[354353490,1740439860322,-587.0,0.00016219,2]
[354353491,1740439860332,-249586.35908148,0.000164,2]
[354353492,1740439860342,-500.0,0.00016438,2]
[354353493,1740439860351,-500.0,0.00016438,2]
[354353494,1740439860361,-500.0,0.00016438,2]
[354353495,1740439860371,-237.67742865,0.00016438,2]
[354353496,1740439860380,-500.0,0.00016438,2]
[354353497,1740439860390,-500.0,0.00016438,2]
[354353498,1740439860399,-500.0,0.00016438,2]
[354353499,1740439860408,-198.15294622,0.00016467,2]
[354353500,1740439860417,-2000.0,0.000165,2]
[354353501,1740439860427,-23182.06,0.000165,2]
[354353502,1740439860437,-10831.42315014,0.000165,7]
[354353503,1740439860448,-500.0,0.00016502,2]
[354353504,1740439860458,-2000.0,0.0001652,2]
[354353505,1740439860468,-65264.67511726,0.00016581,2]
[354353506,1740439860479,-500.0,0.00016602,2]
[354353507,1740439860488,-643.00513594,0.0001662,2]
[354353508,1740439860498,-355.3763574,0.00016689,2]
[354353509,1740439860508,-500.0,0.00016702,2]
[354353510,1740439860518,-2000.0,0.0001672,2]
[354353511,1740439860528,-500.193,0.00016742,2]
[354353512,1740439860537,-2200.0,0.00016742,2]
[354353513,1740439860546,-891.33979377,0.000168,7]
[354353514,1740439860556,-500.0,0.00016802,2]
[354353515,1740439860565,-500.0,0.00016902,2]
[354353516,1740439860575,-1000.0,0.00016986,2]
[354353517,1740439860585,-114480.37876854,0.00017,2]
[354353518,1740439860594,-1220.42678912,0.00017,2]
[354353519,1740439860603,-47141.1024185,0.00017,5]
[354353520,1740439860613,-500.0,0.00017002,2]
[354353521,1740439860622,-2000.0,0.0001702,2]
[354353522,1740439860631,-2000.0,0.0001702,2]
[354353523,1740439860641,-151.0,0.000171,2]
[354353524,1740439860651,-500.0,0.00017102,2]
[354353525,1740439860661,-30022.82019824,0.0001711,2]
[354353526,1740439860670,-500.0,0.00017202,2]
[354353527,1740439860679,-500.0,0.00017302,2]
[354353528,1740439860688,-363.0,0.000174,7]
[354353529,1740439860698,-500.0,0.00017402,2]
[354353530,1740439860707,-2000.0,0.000175,2]
[354353531,1740439860716,-500.0,0.00017502,2]
[354353532,1740439860726,-686.56,0.00017534,4]
[354353533,1740439860735,-1500.0,0.00017534,2]
[354353534,1740439860745,-5000.0,0.00017578,7]
[354353535,1740439860754,-2042.13429591,0.000176,2]
[354353536,1740439860763,-500.0,0.00017602,2]
[354353537,1740439860773,-2332.40638049,0.000177,7]
[354353538,1740439860783,-500.0,0.00017702,2]
[354353539,1740439860792,-654.0,0.0001774,2]
[354353540,1740439860801,-823.0,0.00017777,2]
[354353541,1740439860810,-5904.69311433,0.000178,2]
[354353542,1740439860819,-500.0,0.00017802,2]
[354353543,1740439860828,-500.0,0.00017808,7]
[354353544,1740439860839,-151.0,0.000179,2]
[354353545,1740439860848,-500.0,0.00017902,2]
[354353546,1740439860857,-247.5,0.00017925,30]
[354353547,1740439860866,-334.5,0.00017925,30]
[354353548,1740439860875,-15008.31212615,0.00017925,15]
[354353549,1740439860884,-250.0,0.00017925,10]
[354353550,1740439860893,-259.055577,0.00017925,10]
[354353551,1740439860903,-263035.70055216,0.00017925,7]
[354353552,1740439860912,-6877.01847918,0.00017925,2]
[354353553,1740439860921,-3050.73403915,0.00017925,2]
[354353554,1740439860931,-90118.17804783,0.00017925,2]
[354353555,1740439860941,-30000.0,0.00017925,2]
[354353556,1740439860951,-16657.73780433,0.00017925,2]
[354353557,1740439860960,-300.0,0.00017925,2]
[354353558,1740439860970,-800.45877766,0.00017925,2]
[354353559,1740439860979,-952.80083253,0.00017925,32]
[354353560,1740439860988,-251.86861623,0.00017925,2]
[354353561,1740439860998,-234.09229042,0.00017925,10]
[354353562,1740439861007,-293.47395423,0.00017925,2]
[354353563,1740439861017,-812.85078457,0.00017925,2]
[354353564,1740439861026,-1640.82189953,0.00017925,2]
[354353565,1740439861035,-323.25882713,0.00017925,2]
[354353566,1740439861045,-1195.53230197,0.00017925,2]
[354353567,1740439861054,-288.50062192,0.00017925,2]
[354353568,1740439861063,-51111.38575058,0.00017925,2]
[354353569,1740439861072,-355.18154208,0.00017925,2]
[354353570,1740439861082,-4157.26337888,0.00017925,2]
[354353571,1740439861091,-154.65195714,0.00017925,2]
[354353572,1740439861100,-10186.12482121,0.00017925,2]
[354353573,1740439861109,-3006.02769896,0.00017925,2]
[354353574,1740439861119,-6221.42377535,0.00017925,2]
[354353575,1740439861128,-155.75893643,0.00017925,2]
[354353576,1740439861137,-520.44554449,0.00017925,2]
[354353577,1740439861146,-1694.95223712,0.00017925,2]
[354353578,1740439861155,-440.9856958,0.00017925,2]
[354353579,1740439861164,-1780.43923129,0.00017925,30]
[354353580,1740439861173,-1847.8086526,0.00017925,2]
[354353581,1740439861182,-200.0,0.00017925,10]
[354353582,1740439861191,-13624.37145204,0.00017925,2]
[354353583,1740439861201,-501.89152483,0.00017925,2]
[354353584,1740439861210,-28398.38015123,0.00017925,2]
[354353585,1740439861431,-23051.5,0.00017925,2]
[354353586,1740439861511,-500.0,0.00013698,2]
[354353587,1740439861522,-1068.64059728,0.00017925,2]
[354353588,1740439861536,-32212.25273366,0.00017925,2]
[354353589,1740439861546,-3849.13447584,0.00017925,2]
[354353590,1740439861555,-177.19538249,0.00017925,2]
[354353591,1740439861565,-462.92835213,0.00017925,2]
[354353592,1740439861575,-3004.9358548,0.00017925,3]
[354353593,1740439861583,-532.93326962,0.00017925,3]
[354353594,1740439861593,-12366.98684833,0.00017925,30]
[354353595,1740439861603,-38647.18156391,0.00017925,2]
[354353596,1740439861612,-187.26787605,0.00017925,2]
[354353597,1740439861621,-206152.67112641,0.00017925,10]
[354353598,1740439861645,-500.0,0.00013698,2]
[354353599,1740439861654,-500.0,0.00016438,2]
[354353600,1740439861663,-22070.0,0.00017925,10]
[354353601,1740439861779,-714.94712963,0.00017925,10]
[354353602,1740439861790,-7233.81731424,0.00017925,10]
[354353603,1740440031437,150.0,0.00017925,120]
[354353604,1740440057005,3000.0,0.00017925,120]
[354353605,1740440375385,167116.53912833,0.00017838,120]
[354353606,1740440420347,278.716261,9.041e-05,2]
[354353609,1740440675124,-300.0,0.00010944,2]
[354353610,1740440675146,-650.0,0.00010945,2]
[354353612,1740440748107,-162.23576931,0.00010833,2]
[354353613,1740440748131,-580.92217741,0.00010942,2]
[354353614,1740440751081,-938.09250859,0.00010942,2]
[354353615,1740440830109,-300.0,0.0001094,2]
[354353616,1740440830130,-269.67653229,0.00010941,2]
[354353617,1740440831083,-18396.43372515,0.00010941,2]
[354353621,1740440945086,-300.0,0.00010937,2]
[354353622,1740440945108,-19601.91606613,0.00010938,2]
[354353623,1740440945130,-658.11,0.00010959,2]
[354353624,1740440945151,-548.42,0.00010959,2]
[354353625,1740440945172,-457.02,0.00010959,2]
[354353626,1740440945193,-380.85,0.00010959,2]
[354353627,1740440945214,-317.37,0.00010959,2]
[354353628,1740440945234,-264.48,0.00010959,2]
[354353629,1740440945255,-220.4,0.00010959,2]
[354353630,1740440945276,-183.67,0.00010959,2]
[354353631,1740440945296,-153.05,0.00010959,2]
[354353632,1740440945316,-765.3,0.00010959,2]
[354353633,1740440945336,-3285.0,0.00011,2]
[354353634,1740440945356,-3284.0,0.00011,2]
[354353635,1740440945376,-3284.0,0.00011,2]
[354353636,1740440945396,-3284.0,0.00011,2]
[354353637,1740440945415,-3284.0,0.00011,2]
[354353638,1740440945435,-3284.0,0.00011,2]
[354353639,1740440945455,-420.0,0.00012019,2]
[354353640,1740440945476,-7204.84511927,0.00012185,2]
[354353641,1740440946146,-980.0,0.00012185,2]
[354353720,1740441032167,-74.29870913,0.00012185,2]
[354353722,1740441032178,-193.68974697,0.00013598,2]
[354353724,1740441032188,-717.54942912,0.00013598,2]
[354353726,1740441032200,-1360.56837496,0.00013598,2]
[354353729,1740441032213,-921.88219592,0.00013598,2]
[354353731,1740441032222,-300.0,0.00013672,2]
[354353733,1740441032232,-260.84108868,0.00013673,2]
[354353735,1740441032242,-500.0,0.00013673,2]
[354353737,1740441032252,-500.0,0.00013673,2]
[354353739,1740441032262,-500.0,0.00013673,2]
[354353741,1740441032271,-500.0,0.00013673,2]
[354353743,1740441032281,-500.0,0.00013673,2]
[354353745,1740441032291,-151.0,0.0001369,2]
[354353747,1740441032301,-500.0,0.00013697,2]
[354353749,1740441032311,-255.23769833,0.00013697,2]
[354353751,1740441032322,-500.0,0.00013697,2]
[354353753,1740441032332,-500.0,0.00013697,2]
[354353755,1740441032341,-187.77595319,0.00013697,2]
[354353757,1740441032351,-500.0,0.00013697,2]
[354353759,1740441032361,-500.0,0.00013697,2]
[354353761,1740441032370,-500.0,0.00013697,2]
[354353763,1740441032380,-500.0,0.00013697,2]
[354353765,1740441032389,-500.0,0.00013697,2]
[354353767,1740441032399,-500.0,0.00013697,2]
[354353769,1740441032408,-500.0,0.00013697,2]
[354353771,1740441032418,-500.0,0.00013697,2]
[354353773,1740441032428,-500.0,0.00013697,2]
[354353775,1740441032437,-500.0,0.00013697,2]
[354353777,1740441032447,-574.79310818,0.00013697,2]
[354353779,1740441032458,-500.0,0.00013697,2]
[354353781,1740441032468,-500.0,0.00013697,2]
[354353783,1740441032477,-500.0,0.00013697,2]
[354353785,1740441032487,-408.85375068,0.00013697,2]
[354353787,1740441032497,-500.0,0.00013697,2]
[354353789,1740441032506,-500.0,0.00013697,2]
[354353791,1740441032516,-413.82866792,0.00013697,2]
[354353793,1740441032525,-500.0,0.00013697,2]
[354353795,1740441032535,-500.0,0.00013697,2]
[354353797,1740441032544,-500.0,0.00013698,2]
[354353799,1740441032553,-443.38722618,0.00013698,2]
[354353801,1740441032564,-500.0,0.00013698,2]
[354353803,1740441032573,-505.28212212,0.00013698,2]
[354353805,1740441032583,-500.99320311,0.00013698,2]
[354353807,1740441032592,-500.0,0.00013698,2]
[354353809,1740441032602,-500.0,0.00013698,2]
[354353811,1740441032611,-500.0,0.00013698,2]
[354353813,1740441032621,-500.0,0.00013698,2]
[354353815,1740441032630,-500.0,0.00013698,2]
[354353816,1740441032640,-500.0,0.00013698,2]
[354353818,1740441032650,-500.0,0.00013698,2]
[354353820,1740441032659,-533.75238592,0.00013698,2]
[354353822,1740441032669,-500.0,0.00013698,2]
[354353824,1740441032678,-500.0,0.00013698,2]
[354353826,1740441032688,-500.0,0.00013698,2]
[354353828,1740441032698,-485.62694335,0.00013698,2]
[354353829,1740441032707,-500.0,0.00013698,2]
[354353830,1740441032717,-500.0,0.00013698,2]
[354353831,1740441032727,-553.35952589,0.00013698,2]
[354353832,1740441032736,-511.91622594,0.00013698,2]
[354353833,1740441032745,-500.0,0.00013698,2]
[354353834,1740441032755,-500.0,0.00013698,2]
[354353835,1740441032764,-502.51766207,0.00013698,2]
[354353836,1740441032773,-452.26105602,0.00013698,2]
[354353837,1740441032782,-500.0,0.00013698,2]
[354353838,1740441032791,-525.13426293,0.00013698,2]
[354353839,1740441032800,-500.0,0.00013698,2]
[354353840,1740441032810,-504.57787772,0.00013698,2]
[354353841,1740441032822,-407.70227789,0.00013698,2]
[354353842,1740441032832,-500.0,0.00013698,2]
[354353843,1740441032842,-500.0,0.00013698,2]
[354353844,1740441032852,-500.0,0.00013698,2]
[354353845,1740441032862,-500.0,0.00013698,2]
[354353846,1740441032872,-500.0,0.00013698,2]
[354353847,1740441032882,-500.0,0.00013698,2]
[354353848,1740441032892,-500.0,0.00013698,2]
[354353849,1740441032901,-500.0,0.00013698,2]
[354353851,1740441032911,-500.0,0.00013698,2]
[354353852,1740441032922,-500.0,0.00013698,2]
[354353854,1740441032932,-500.0,0.00013698,2]
[354353856,1740441032941,-500.0,0.00013698,2]
[354353858,1740441032950,-218.24491378,0.00013698,2]
[354353860,1740441032960,-500.0,0.00013698,2]
[354353862,1740441032969,-500.0,0.00013698,2]
[354353864,1740441032979,-500.0,0.00013698,2]
[354353866,1740441032989,-500.0,0.00013698,2]
[354353868,1740441032999,-500.0,0.00013698,2]
[354353870,1740441033009,-500.0,0.00013698,2]
[354353872,1740441033019,-500.0,0.00013698,2]
[354353874,1740441033028,-500.0,0.00013698,2]
[354353876,1740441033038,-500.0,0.00013698,2]
[354353878,1740441033048,-500.0,0.00013698,2]
[354353880,1740441033058,-500.0,0.00013698,2]
[354353881,1740441033068,-500.0,0.00013698,2]
[354353884,1740441033078,-500.0,0.00013698,2]
[354353886,1740441033088,-500.0,0.00013698,2]
[354353888,1740441033098,-500.0,0.00013698,2]
[354353890,1740441033108,-500.0,0.00013698,2]
[354353891,1740441033118,-500.0,0.00013698,2]
[354353893,1740441033128,-406.44118837,0.00013698,2]
[354353895,1740441033139,-500.0,0.00013698,2]
[354353897,1740441033150,-500.0,0.00013698,2]
[354353899,1740441033160,-500.0,0.00013698,2]
[354353901,1740441033170,-500.0,0.00013698,2]
[354353903,1740441033180,-500.0,0.00013698,2]
[354353905,1740441033190,-500.0,0.00013698,2]
[354353907,1740441033200,-660.34,0.00013698,2]
[354353909,1740441033210,-500.0,0.00013698,2]
[354353911,1740441033220,-500.0,0.00013698,2]
[354353914,1740441033231,-500.0,0.00013698,2]
[354353915,1740441033241,-517.26745547,0.00013698,2]
[354353918,1740441033252,-500.0,0.00013698,2]
[354353919,1740441033263,-188.41224194,0.00013698,2]
[354353921,1740441033275,-500.0,0.00013698,2]
[354353924,1740441033285,-500.0,0.00013698,2]
[354353926,1740441033296,-500.0,0.00013698,2]
[354353928,1740441033308,-500.0,0.00013698,2]
[354353930,1740441033321,-500.0,0.00013698,2]
[354353932,1740441033332,-500.0,0.00013698,2]
[354353934,1740441033343,-500.0,0.00013698,2]
[354353936,1740441033354,-500.0,0.00013698,2]
[354353937,1740441033365,-500.0,0.00013698,2]
[354353939,1740441033376,-500.0,0.00013698,2]
[354353941,1740441033387,-500.0,0.00013698,2]
[354353943,1740441033398,-500.0,0.00013698,2]
[354353945,1740441033409,-500.0,0.00013698,2]
[354353947,1740441033420,-1121.66,0.00013698,2]
[354353949,1740441033431,-500.0,0.00013698,2]
[354353952,1740441033442,-500.0,0.00013698,2]
[354353953,1740441033453,-509.20042152,0.00013698,2]
[354353956,1740441033465,-500.0,0.00013698,2]
[354353957,1740441033475,-500.0,0.00013698,2]
[354353960,1740441033487,-500.0,0.00013698,2]
[354353961,1740441033498,-500.0,0.00013698,2]
[354353963,1740441033508,-1000.0,0.00013698,2]
[354353965,1740441033519,-972.02,0.00013698,2]
[354353967,1740441033530,-500.0,0.00013698,2]
[354353969,1740441033542,-500.0,0.00013698,2]
[354353971,1740441033553,-500.0,0.00013698,2]
[354353973,1740441033565,-746.06,0.00013698,2]
[354353976,1740441033575,-500.0,0.00013698,2]
[354353978,1740441033585,-506.37998842,0.00013698,2]
[354353980,1740441033595,-562.3,0.00013698,2]
[354353982,1740441033605,-500.0,0.00013698,2]
[354353983,1740441033614,-500.0,0.00013698,2]
[354353985,1740441033624,-500.0,0.00013698,2]
[354353987,1740441033634,-500.0,0.00013698,2]
[354353989,1740441033643,-500.0,0.00013698,2]
[354353991,1740441033653,-500.0,0.00013698,2]
[354353993,1740441033662,-500.0,0.00013698,2]
[354353995,1740441033673,-501.16602888,0.00013698,2]
[354353997,1740441033683,-500.0,0.00013698,2]
[354353999,1740441033692,-500.0,0.00013698,2]
[354354001,1740441033702,-500.0,0.00013698,2]
[354354003,1740441033712,-500.0,0.00013698,2]
[354354005,1740441033723,-500.0,0.00013698,2]
[354354007,1740441033732,-500.0,0.00013698,2]
[354354009,1740441033742,-500.0,0.00013698,2]
[354354011,1740441033752,-371.04980612,0.00013698,2]
[354354013,1740441033762,-219.02584653,0.00013698,2]
[354354015,1740441033772,-500.0,0.00013698,2]
[354354017,1740441033783,-500.0,0.00013698,2]
[354354019,1740441033793,-500.0,0.00013698,2]
[354354021,1740441033803,-500.0,0.00013698,2]
[354354023,1740441033815,-500.0,0.00013698,2]
[354354025,1740441033833,-500.0,0.00013698,2]
[354354027,1740441033843,-552.52656968,0.00013698,2]
[354354029,1740441033854,-500.0,0.00013698,2]
[354354031,1740441033865,-500.0,0.00013698,2]
[354354033,1740441033876,-500.0,0.00013698,2]
[354354054,1740441034083,-500.0,0.00013698,2]
[354354056,1740441034096,-500.0,0.00013698,2]
[354354058,1740441034106,-500.0,0.00013698,2]
[354354060,1740441034118,-500.0,0.00013698,2]
[354354063,1740441034129,-500.0,0.00013698,2]
[354354065,1740441034139,-500.0,0.00013698,2]
[354354067,1740441034150,-500.0,0.00013698,2]
[354354069,1740441034162,-500.0,0.00013698,2]
[354354071,1740441034173,-500.0,0.00013698,2]
[354354073,1740441034183,-500.0,0.00013698,2]
[354354075,1740441034193,-500.0,0.00013698,2]
[354354077,1740441034203,-1020.63,0.00013698,2]
[354354079,1740441034213,-501.17098001,0.00013698,2]
[354354081,1740441034223,-500.0,0.00013698,2]
[354354083,1740441034233,-500.0,0.00013698,2]
[354354085,1740441034243,-500.0,0.00013698,2]
[354354087,1740441034253,-500.0,0.00013698,2]
[354354089,1740441034263,-500.0,0.00013698,2]
[354354091,1740441034273,-500.0,0.00013698,2]
[354354093,1740441034282,-515.67555218,0.00013698,2]
[354354095,1740441034292,-500.0,0.00013698,2]
[354354097,1740441034302,-502.82804921,0.00013698,2]
[354354099,1740441034311,-500.0,0.00013698,2]
[354354101,1740441034323,-500.0,0.00013698,2]
[354354103,1740441034333,-500.0,0.00013698,2]
[354354105,1740441034343,-352.50764116,0.00013698,2]
[354354107,1740441034353,-547.01087436,0.00013698,2]
[354354109,1740441034363,-500.0,0.00013698,2]
[354354111,1740441034373,-500.0,0.00013698,2]
[354354113,1740441034383,-8470.74,0.00013698,2]
[354354115,1740441034393,-500.0,0.00013698,2]
[354354117,1740441034403,-500.0,0.00013698,2]
[354354118,1740441034413,-500.0,0.00013698,2]
[354354121,1740441034422,-500.0,0.00013698,2]
[354354123,1740441034432,-500.0,0.00013698,2]
[354354124,1740441034441,-500.0,0.00013698,2]
[354354125,1740441034451,-1274.13,0.00013698,2]
[354354126,1740441034461,-500.0,0.00013698,2]
[354354128,1740441034471,-500.0,0.00013698,2]
[354354130,1740441034481,-500.0,0.00013698,2]
[354354131,1740441034491,-367.91592911,0.00013698,2]
[354354133,1740441034501,-500.0,0.00013698,2]
[354354135,1740441034510,-500.0,0.00013698,2]
[354354137,1740441034520,-500.0,0.00013698,2]
[354354139,1740441034530,-500.0,0.00013698,2]
[354354141,1740441034540,-500.0,0.00013698,2]
[354354143,1740441034549,-500.0,0.00013698,2]
[354354145,1740441034559,-500.0,0.00013698,2]
[354354147,1740441034571,-2717.54,0.00013698,2]
[354354148,1740441034580,-500.0,0.00013698,2]
[354354150,1740441034590,-500.0,0.00013698,2]
[354354152,1740441034600,-500.0,0.00013698,2]
[354354154,1740441034610,-500.0,0.00013698,2]
[354354156,1740441034620,-500.0,0.00013698,2]
[354354158,1740441034630,-500.0,0.00013698,2]
[354354160,1740441034641,-500.0,0.00013698,2]
[354354161,1740441034651,-500.0,0.00013698,2]
[354354163,1740441034662,-1434.69,0.00013698,2]
[354354165,1740441034672,-500.0,0.00013698,2]
[354354167,1740441034682,-504.71986521,0.00013698,2]
[354354169,1740441034693,-500.0,0.00013698,2]
[354354171,1740441034703,-500.0,0.00013698,2]
[354354173,1740441034712,-500.0,0.00013698,2]
[354354174,1740441034722,-500.0,0.00013698,2]
[354354175,1740441034732,-500.0,0.00013698,2]
[354354176,1740441034742,-576.16739594,0.00013698,2]
[354354178,1740441034761,-199.45260406,0.00013698,2]
[354354179,1740441034770,-500.0,0.00013698,2]
[354354181,1740441034780,-500.0,0.00013698,2]
[354354183,1740441034790,-500.0,0.00013698,2]
[354354185,1740441034799,-500.0,0.00013698,2]
[354354187,1740441034808,-500.0,0.00013698,2]
[354354189,1740441034819,-500.0,0.00013698,2]
[354354190,1740441034829,-500.0,0.00013698,2]
[354354192,1740441034841,-501.50324051,0.00013698,2]
[354354193,1740441034851,-500.0,0.00013698,2]
[354354194,1740441034860,-500.0,0.00013698,2]
[354354195,1740441034870,-802.29,0.00013698,2]
[354354196,1740441034880,-500.0,0.00013698,2]
[354354197,1740441034891,-1801.35,0.00013698,2]
[354354198,1740441034900,-500.0,0.00013698,2]
[354354199,1740441034910,-517.77,0.00013698,2]
[354354200,1740441034920,-500.0,0.00013698,2]
[354354201,1740441034930,-3977.84,0.00013698,2]
[354354202,1740441034940,-500.0,0.00013698,2]
[354354203,1740441034950,-500.0,0.00013698,2]
[354354204,1740441034960,-500.0,0.00013698,2]
[354354205,1740441034970,-284.68877623,0.00013698,2]
[354354206,1740441034979,-11335.04,0.00013698,2]
[354354207,1740441034989,-580.24,0.00013698,2]
[354354208,1740441034998,-1009.36,0.00013698,2]
[354354209,1740441035007,-500.0,0.00013698,2]
[354354210,1740441035016,-500.0,0.00013698,2]
[354354211,1740441035025,-500.0,0.00013698,2]
[354354212,1740441035035,-500.0,0.00013698,2]
[354354213,1740441035044,-500.0,0.00013698,2]
[354354214,1740441035054,-1090.05,0.00013698,2]
[354354215,1740441035065,-500.00000001,0.00013698,2]
[354354216,1740441035075,-500.0,0.00013698,2]
[354354217,1740441035084,-500.0,0.00013698,2]
[354354218,1740441035093,-500.0,0.00013698,2]
[354354219,1740441035102,-500.0,0.00013698,2]
[354354220,1740441035112,-503.29641154,0.00013698,2]
[354354221,1740441035122,-336.39591312,0.00013698,2]
[354354222,1740441035131,-500.0,0.00013698,2]
[354354223,1740441035141,-500.0,0.00013698,2]
[354354224,1740441035151,-500.0,0.00013698,2]
[354354225,1740441035160,-500.0,0.00013698,2]
[354354226,1740441035169,-500.0,0.00013698,2]
[354354227,1740441035178,-500.0,0.00013698,2]
[354354228,1740441035188,-500.0,0.00013698,2]
[354354229,1740441035197,-500.0,0.00013698,2]
[354354230,1740441035206,-500.0,0.00013698,2]
[354354231,1740441035216,-500.0,0.00013698,2]
[354354232,1740441035226,-500.0,0.00013698,2]
[354354233,1740441035235,-500.0,0.00013698,2]
[354354234,1740441035245,-500.0,0.00013698,2]
[354354235,1740441035255,-500.0,0.00013698,2]
[354354236,1740441035264,-500.0,0.00013698,2]
[354354237,1740441035274,-2899.3,0.00013698,2]
[354354238,1740441035283,-824.84,0.00013698,2]
[354354239,1740441035292,-500.0,0.00013698,2]
[354354240,1740441035302,-500.0,0.00013698,2]
[354354241,1740441035311,-500.0,0.00013698,2]
[354354242,1740441035322,-6430.29,0.00013698,2]
[354354243,1740441035331,-500.0,0.00013698,2]